bitfinex/quotes_BTCUSD_20240730
["timestamp","ask_amount","ask_price","bid_price","bid_amount"]
[1722353547558,0.00756,66290.0,66285.0,0.1384]
[1722353548398,0.309265,66290.0,66285.0,0.1384]
[1722353548607,0.00756,66290.0,66285.0,0.1384]
[1722353549260,0.00756,66290.0,66285.0,0.1474]
[1722353549641,0.158412,66290.0,66285.0,0.1384]
[1722353549838,0.00756,66290.0,66285.0,0.1524]
[1722353550296,0.309265,66290.0,66285.0,0.1524]
[1722353550505,0.158412,66290.0,66285.0,0.1524]
[1722353550744,0.15086,66287.0,66285.0,0.1524]
[1722353551474,0.452583,66286.0,66285.0,0.0758]
[1722353551678,0.8304907,66286.0,66285.0,0.014]
[1722353551904,1.1322127,66286.0,66285.0,0.014]
[1722353552106,1.20666004,66286.0,66285.0,0.014]
[1722353552960,1.056044,66285.0,66284.0,0.009339]
[1722353553188,1.2820242,66285.0,66284.0,0.009339]
[1722353553906,1.43271852,66285.0,66284.0,0.009339]
[1722353554144,1.2820242,66285.0,66284.0,0.009339]
[1722353554509,0.754317,66285.0,66284.0,0.019339]
[1722353554711,0.754317,66285.0,66284.0,0.009339]
[1722353555649,0.301722,66287.0,66285.0,0.0619]
[1722353555856,0.150861,66286.0,66285.0,0.0619]
[1722353556052,0.452583,66286.0,66285.0,0.0619]
[1722353557550,0.150857,66288.0,66285.0,0.0719]
[1722353557773,0.00756,66290.0,66286.0,0.0015542]
[1722353558575,0.00756,66290.0,66287.0,0.150858]
[1722353558775,0.00756,66290.0,66288.0,0.0015542]
[1722353559052,0.00756,66290.0,66289.0,0.0617]
[1722353559767,0.00756,66290.0,66289.0,0.1377]
[1722353559965,0.00756,66290.0,66289.0,0.1392542]
[1722353560271,0.00756,66290.0,66289.0,0.1507]
[1722353561236,0.00756,66290.0,66289.0,0.1522542]
[1722353561975,0.00756,66290.0,66289.0,0.1507]
[1722353562151,0.00756,66290.0,66289.0,0.1522542]
[1722353562534,0.00756,66290.0,66289.0,0.1507]
[1722353563769,0.76182,66290.0,66289.0,0.0747]
[1722353563985,0.48374246,66290.0,66289.0,0.013]
[1722353565134,0.00756,66290.0,66289.0,0.013]
[1722353565715,0.158412,66290.0,66289.0,0.013]
[1722353565918,0.18203824,66290.0,66289.0,0.013]
[1722353566280,0.78544624,66290.0,66289.0,0.013]
[1722353566520,1.15911881,66290.0,66289.0,0.013]
[1722353566936,1.08715024,66290.0,66289.0,0.013]
[1722353567323,1.23585024,66290.0,66289.0,0.013]
[1722353567941,1.17015024,66290.0,66289.0,0.013]
[1722353568199,1.08715024,66290.0,66289.0,0.013]
[1722353572294,1.75628728,66290.0,66289.0,0.013]
[1722353572519,1.9069816,66290.0,66289.0,0.013]
[1722353572697,1.91638933,66290.0,66289.0,0.013]
[1722353573389,1.46399101,66290.0,66289.0,0.013]
[1722353573590,1.45458328,66290.0,66289.0,0.013]
[1722353573926,0.48374224,66290.0,66289.0,0.013]
[1722353574338,0.78544624,66290.0,66289.0,0.0145542]
[1722353574920,0.78544624,66290.0,66289.0,0.013]
[1722353574921,0.48374224,66290.0,66289.0,0.013]
[1722353575142,0.18203824,66290.0,66289.0,0.013]
[1722353575355,0.48374224,66290.0,66289.0,0.0145542]
[1722353575774,0.03118624,66290.0,66289.0,0.0145542]
[1722353578175,0.03118624,66290.0,66289.0,0.013]
[1722353578551,0.03118624,66290.0,66289.0,0.0145542]
[1722353580370,0.48374224,66290.0,66289.0,0.0145542]
[1722353581164,0.48374224,66290.0,66289.0,0.013]
[1722353581363,0.03118624,66290.0,66289.0,0.0145542]
[1722353582611,0.03118624,66290.0,66289.0,0.9071221]
[1722353582818,0.00083,66307.0,66303.0,0.150822]
[1722353583046,0.00083,66307.0,66294.0,0.01]
[1722353583047,0.00083,66307.0,66306.0,0.889577]
[1722353583448,0.00083,66307.0,66306.0,1.214208]
[1722353583624,0.00083,66307.0,66306.0,1.05300756]
[1722353584240,0.00083,66307.0,66306.0,1.09227997]
[1722353584440,0.00083,66307.0,66306.0,1.21763834]
[1722353584701,0.00083,66307.0,66306.0,1.51926934]
[1722353585284,0.00083,66307.0,66306.0,1.64126934]
[1722353586109,0.00083,66307.0,66306.0,1.61925625]
[1722353586303,0.00083,66307.0,66306.0,1.18883651]
[1722353586520,0.00083,66307.0,66306.0,1.20283651]
[1722353586881,0.00083,66307.0,66306.0,0.43494147]
[1722353587083,0.00083,66307.0,66306.0,0.32594147]
[1722353587281,0.00083,66307.0,66306.0,0.09982647]
[1722353587479,0.00083,66307.0,66306.0,0.08582647]
[1722353587683,0.00083,66307.0,66306.0,0.09982647]
[1722353587954,0.00083,66307.0,66306.0,0.25064147]
[1722353588314,0.00083,66307.0,66306.0,0.55227247]
[1722353588524,0.00083,66307.0,66306.0,0.83883354]
[1722353589116,0.00083,66307.0,66306.0,0.52320254]
[1722353589559,0.00083,66307.0,66306.0,0.53720254]
[1722353589767,0.00083,66307.0,66306.0,0.23557154]
[1722353590151,0.00083,66307.0,66306.0,0.24957154]
[1722353590554,0.00083,66307.0,66306.0,0.239015]
[1722353591105,0.00083,66307.0,66306.0,0.0882]
[1722353591614,0.00083,66307.0,66306.0,0.028]
[1722353592898,0.00083,66307.0,66306.0,0.480446]
[1722353593102,0.00083,66307.0,66306.0,0.95571004]
[1722353593306,0.00083,66307.0,66306.0,1.40974104]
[1722353594587,0.00083,66307.0,66306.0,1.39974104]
[1722353594969,0.00083,66307.0,66306.0,1.40974104]
[1722353595176,0.00083,66307.0,66306.0,1.83137204]
[1722353595459,0.44444115,66323.0,66322.0,0.819897]
[1722353595666,0.44444115,66323.0,66322.0,1.08989997]
[1722353595869,0.150748,66336.0,66324.0,0.301548]
[1722353596016,0.150748,66336.0,66325.0,0.15378605]
[1722353596217,0.07534716,66330.0,66329.0,0.150763]
[1722353596637,0.07534716,66337.0,66329.0,0.301527]
[1722353596840,0.07534716,66337.0,66322.0,0.33600297]
[1722353596841,0.07534716,66337.0,66332.0,0.150755]
[1722353597018,0.07534716,66337.0,66333.0,0.150753]
[1722353597221,0.07534716,66337.0,66336.0,0.150747]
[1722353597424,0.07534716,66345.0,66336.0,0.150747]
[1722353597425,0.07534716,66345.0,66337.0,0.064]
[1722353597691,0.07534716,66345.0,66338.0,0.00301444]
[1722353597823,0.07534716,66345.0,66340.0,0.150737]
[1722353598024,0.07534716,66345.0,66337.0,0.064]
[1722353598025,0.150729,66344.0,66337.0,0.064]
[1722353598227,0.07534716,66338.0,66337.0,0.064]
[1722353598872,0.07534716,66345.0,66337.0,0.365487]
[1722353599018,0.07534716,66345.0,66338.0,0.00301444]
[1722353599245,0.07534716,66345.0,66337.0,0.064]
[1722353599465,0.07534716,66338.0,66337.0,0.064]
[1722353600019,0.07534716,66338.0,66333.0,0.064]
[1722353600192,0.07534716,66338.0,66333.0,0.214753]
[1722353600396,0.07534716,66338.0,66333.0,0.064]
[1722353601585,0.07534716,66338.0,66337.0,0.014]
[1722353601858,1.13054816,66338.0,66337.0,0.014]
[1722353602049,0.82906216,66338.0,66337.0,0.014]
[1722353602800,1.2811812,66338.0,66337.0,0.014]
[1722353603401,1.4212812,66338.0,66337.0,0.014]
[1722353603711,0.301518,66331.0,66314.0,0.365493]
[1722353603918,0.3660802,66338.0,66315.0,0.301588]
[1722353603919,0.07534716,66326.0,66315.0,0.301588]
[1722353604117,0.07534716,66326.0,66314.0,0.0639]
[1722353604319,0.15063304,66337.0,66315.0,0.15364854]
[1722353604518,0.07534716,66331.0,66315.0,0.16364854]
[1722353604717,0.15075,66335.0,66324.0,0.150773]
[1722353604919,0.07534716,66331.0,66325.0,0.00301514]
[1722353605887,0.07534716,66331.0,66322.0,0.01506993]
[1722353606096,0.22610716,66331.0,66322.0,0.01506993]
[1722353606444,0.22610616,66331.0,66322.0,0.01506993]
[1722353606870,0.07534716,66331.0,66322.0,0.01506993]
[1722353607393,0.22610716,66331.0,66322.0,0.01506993]
[1722353607629,0.07534716,66331.0,66322.0,0.01506993]
[1722353607808,0.07534716,66331.0,66322.0,0.02906993]
[1722353607946,0.07534716,66323.0,66322.0,0.02906993]
[1722353608614,0.150766,66328.0,66322.0,0.02906993]
[1722353608807,0.07534716,66331.0,66322.0,0.02906993]
[1722353608808,0.150764,66329.0,66322.0,0.02906993]
[1722353609014,0.150766,66328.0,66322.0,0.02906993]
[1722353609218,0.150766,66328.0,66322.0,0.01506993]
[1722353609449,0.150764,66329.0,66322.0,0.01506993]
[1722353609666,0.150766,66328.0,66322.0,0.01506993]
[1722353609870,0.150767,66328.0,66322.0,0.01506993]
[1722353610040,0.07534716,66331.0,66322.0,0.01506993]
[1722353610242,0.150761,66330.0,66322.0,0.01506993]
[1722353610479,0.150766,66328.0,66322.0,0.01506993]
[1722353610680,0.150764,66329.0,66322.0,0.01506993]
[1722353610881,0.301522,66330.0,66322.0,0.01506993]
[1722353610882,0.150765,66328.0,66322.0,0.01506993]
[1722353611106,0.301522,66330.0,66322.0,0.02906993]
[1722353611107,0.150763,66329.0,66322.0,0.02906993]
[1722353611302,0.150766,66328.0,66322.0,0.01506993]
[1722353611725,0.150766,66328.0,66322.0,0.02906993]
[1722353611923,0.150765,66329.0,66322.0,0.02906993]
[1722353612125,0.150766,66328.0,66322.0,0.02906993]
[1722353612546,0.301522,66330.0,66322.0,0.02906993]
[1722353612745,0.150764,66329.0,66322.0,0.02906993]
[1722353613097,0.07534716,66331.0,66322.0,0.014]
[1722353613303,0.07534716,66331.0,66321.0,0.301562]
[1722353613510,0.0829,66343.0,66323.0,0.0658]
[1722353613710,0.0663,66346.0,66324.0,0.30198669]
[1722353613711,0.150726,66346.0,66324.0,0.30198669]
[1722353613937,0.00083,66347.0,66337.0,0.301488]
[1722353614149,0.00083,66347.0,66340.0,0.150738]
[1722353614385,0.00083,66347.0,66341.0,0.0015542]
[1722353614583,0.150725,66346.0,66340.0,0.0015542]
[1722353614782,0.00083,66347.0,66340.0,0.0015542]
[1722353615291,0.00083,66347.0,66339.0,0.0604]
[1722353615501,0.00083,66347.0,66340.0,0.0015542]
[1722353615502,0.07534716,66343.0,66340.0,0.0015542]
[1722353615914,0.07534716,66343.0,66339.0,0.0604]
[1722353616116,0.07534716,66343.0,66340.0,0.0015542]
[1722353616885,0.37681016,66343.0,66340.0,0.0015542]
[1722353617053,0.07534716,66343.0,66334.0,0.0015542]
[1722353617259,0.07534716,66335.0,66334.0,0.0015542]
[1722353617462,0.150758,66332.0,66327.0,0.0015542]
[1722353617636,0.07534716,66335.0,66327.0,0.0015542]
[1722353617837,0.07534716,66328.0,66327.0,0.0015542]
[1722353618821,0.52764316,66328.0,66327.0,0.0015542]
[1722353619008,0.52764316,66328.0,66326.0,0.01506993]
[1722353619009,0.452304,66327.0,66326.0,0.01506993]
[1722353619430,0.07534716,66328.0,66320.0,0.0015542]
[1722353619620,0.07534716,66321.0,66320.0,0.0015542]
[1722353619821,0.150789,66318.0,66315.0,0.0015542]
[1722353620024,0.150786,66319.0,66315.0,0.0015542]
[1722353620670,0.37691016,66321.0,66315.0,0.0015542]
[1722353620671,0.150793,66316.0,66315.0,0.0015542]
[1722353620886,0.150793,66316.0,66313.0,0.01506993]
[1722353620887,0.150789,66318.0,66314.0,0.0015542]
[1722353621032,0.150787,66319.0,66314.0,0.0015542]
[1722353621230,0.45261216,66321.0,66315.0,0.014]
[1722353621433,0.02,66341.0,66315.0,0.014]
[1722353621434,0.301537,66327.0,66316.0,0.0015542]
[1722353621636,0.0757,66331.0,66319.0,0.0657]
[1722353621837,0.45444115,66348.0,66319.0,0.0657]
[1722353621838,0.37684816,66335.0,66320.0,0.12991407]
[1722353621998,0.301509,66333.0,66321.0,0.12534457]
[1722353622198,0.150756,66332.0,66322.0,0.12689877]
[1722353622472,0.150753,66334.0,66323.0,0.27612057]
[1722353622632,0.07534716,66335.0,66324.0,0.0045695]
[1722353622798,0.07534716,66335.0,66325.0,0.12534122]
[1722353623001,0.07534716,66335.0,66328.0,0.150764]
[1722353623210,0.07534716,66335.0,66329.0,0.12990496]
[1722353623422,0.07534716,66335.0,66329.0,0.00456911]
[1722353623616,0.07534716,66335.0,66329.0,0.0015542]
[1722353623904,0.07534716,66335.0,66328.0,0.0015542]
[1722353624087,0.07534716,66335.0,66320.0,0.08106993]
[1722353624088,0.07534716,66335.0,66325.0,0.014]
[1722353624282,0.150757,66332.0,66326.0,0.12533695]
[1722353624555,0.07534716,66328.0,66327.0,0.0015542]
[1722353624773,0.07534716,66328.0,66323.0,0.150776]
[1722353624934,0.00083,66345.0,66344.0,0.150729]
[1722353625085,0.00083,66345.0,66329.0,0.01]
[1722353625086,0.00083,66345.0,66342.0,0.0666]
[1722353625291,0.00083,66345.0,66343.0,0.12685716]
[1722353625615,0.00083,66345.0,66343.0,0.0015542]
[1722353626416,0.150732,66343.0,66338.0,0.0015542]
[1722353626622,0.07534716,66339.0,66338.0,0.0015542]
[1722353626851,0.07534716,66339.0,66334.0,0.0015542]
[1722353627023,0.07534716,66339.0,66335.0,0.12531751]
[1722353627203,0.07534716,66339.0,66336.0,0.12687171]
[1722353627400,0.07534716,66339.0,66336.0,0.0015542]
[1722353627895,0.150743,66338.0,66336.0,0.0015542]
[1722353628073,0.753725,66337.0,66336.0,0.0015542]
[1722353628301,0.452277,66331.0,66330.0,0.0015542]
[1722353628488,0.0829,66338.0,66330.0,0.0015542]
[1722353628699,0.07534716,66332.0,66330.0,0.0015542]
[1722353629247,0.07534716,66332.0,66326.0,0.0015542]
[1722353629449,0.07534716,66332.0,66327.0,0.12533106]
[1722353629660,0.07534716,66332.0,66328.0,0.0015542]
[1722353629859,0.07534716,66332.0,66326.0,0.0015542]
[1722353630056,0.07534716,66332.0,66330.0,0.014]
[1722353630283,0.07534716,66332.0,66323.0,0.214177]
[1722353630284,0.07534716,66332.0,66331.0,0.0015542]
[1722353630489,0.0829,66338.0,66327.0,0.150767]
[1722353630490,0.233644,66338.0,66327.0,0.150767]
[1722353630684,0.37683216,66339.0,66328.0,0.0015542]
[1722353630685,0.07534716,66332.0,66328.0,0.0015542]
[1722353630959,0.00083,66345.0,66330.0,0.1468]
[1722353631179,0.00083,66345.0,66334.0,0.301502]
[1722353631383,0.00083,66345.0,66337.0,0.150744]
[1722353631553,0.07534716,66342.0,66338.0,0.0015542]
[1722353632117,0.07534716,66342.0,66337.0,0.0015542]
[1722353633259,0.07534716,66342.0,66332.0,0.1523092]
[1722353633505,0.07534716,66342.0,66333.0,0.12531846]
[1722353633707,0.07534716,66342.0,66338.0,0.014]
[1722353633912,0.07534716,66342.0,66336.0,0.15376162]
[1722353634113,0.07534716,66342.0,66337.0,0.0015542]
[1722353634289,0.07534716,66342.0,66337.0,0.0155542]
[1722353635658,0.07534716,66342.0,66337.0,0.0015542]
[1722353635797,0.07534716,66342.0,66336.0,0.0015542]
[1722353635997,0.07534716,66342.0,66338.0,0.014]
[1722353636199,0.07534716,66342.0,66339.0,0.0015542]
[1722353636747,0.07534716,66342.0,66337.0,0.0155542]
[1722353637148,0.07534716,66342.0,66337.0,0.0015542]
[1722353637358,0.07534716,66342.0,66321.0,0.05245]
[1722353637359,0.37681516,66342.0,66339.0,0.014]
[1722353637562,0.452215,66340.0,66339.0,0.014]
[1722353637761,0.02360927,66340.0,66331.0,0.0015542]
[1722353637965,0.07534716,66335.0,66331.0,0.0015542]
[1722353638599,0.07534716,66335.0,66328.0,0.0015542]
[1722353638956,0.07534716,66334.0,66329.0,0.15364805]
[1722353639169,0.07534716,66334.0,66330.0,0.0015542]
[1722353639358,0.00083,66345.0,66332.0,0.0755]
[1722353639558,0.07534716,66342.0,66337.0,0.150744]
[1722353639777,0.07534716,66342.0,66338.0,0.15375645]
[1722353640178,0.07534716,66342.0,66338.0,0.00301445]
[1722353640432,0.07534716,66342.0,66339.0,0.0015542]
[1722353640624,0.07534716,66342.0,66340.0,0.00301445]
[1722353640831,0.07534716,66342.0,66341.0,0.0015542]
[1722353641212,0.07534716,66342.0,66340.0,0.00301445]
[1722353641411,0.00083,66345.0,66344.0,0.150729]
[1722353641616,0.00083,66345.0,66344.0,0.99599424]
[1722353641810,0.00083,66345.0,66344.0,1.99643062]
[1722353642011,0.00083,66345.0,66344.0,2.29788962]
[1722353642776,0.00083,66345.0,66344.0,2.29988962]
[1722353643460,0.00083,66345.0,66344.0,2.27788962]
[1722353643672,0.00083,66345.0,66344.0,2.29786751]
[1722353644588,0.00083,66345.0,66344.0,2.31186751]
[1722353644939,0.00083,66345.0,66344.0,2.31386751]
[1722353645341,0.00083,66345.0,66344.0,2.01106751]
[1722353645566,0.00083,66345.0,66344.0,1.44631298]
[1722353645766,0.00083,66345.0,66344.0,1.28288004]
[1722353646345,0.00083,66345.0,66344.0,1.61633904]
[1722353646572,0.00083,66345.0,66344.0,2.04307917]
[1722353647611,0.00083,66345.0,66344.0,1.71962017]
[1722353647810,0.00083,66345.0,66344.0,1.70962017]
[1722353648189,0.00083,66345.0,66344.0,1.58433904]
[1722353648459,0.00083,66345.0,66344.0,1.70961582]
[1722353648647,0.00083,66345.0,66344.0,1.58433904]
[1722353648847,0.00083,66345.0,66344.0,1.70961714]
[1722353649192,0.00083,66345.0,66344.0,1.58433904]
[1722353650189,0.00083,66345.0,66344.0,1.28288004]
[1722353650594,0.00083,66345.0,66344.0,0.57996204]
[1722353650797,0.00083,66345.0,66344.0,0.88142104]
[1722353651036,0.00083,66345.0,66344.0,0.42923304]
[1722353651248,0.00083,66345.0,66344.0,0.18763304]
[1722353651455,0.00083,66345.0,66344.0,0.037]
[1722353651659,0.00083,66345.0,66344.0,0.164729]
[1722353652064,0.00083,66345.0,66344.0,0.466188]
[1722353652515,0.00083,66345.0,66343.0,0.15138144]
[1722353652733,0.00083,66345.0,66344.0,1.2083759]
[1722353652933,0.00083,66345.0,66344.0,1.6468349]
[1722353653250,0.00083,66345.0,66344.0,2.24972909]
[1722353653452,0.00083,66347.0,66346.0,1.334571]
[1722353653631,0.00083,66347.0,66346.0,2.33636018]
[1722353653867,0.00083,66347.0,66346.0,2.03491118]
[1722353654070,0.00083,66347.0,66346.0,2.03291118]
[1722353655218,0.00083,66347.0,66346.0,2.33436018]
[1722353655664,0.00083,66347.0,66346.0,2.33636018]
[1722353655865,0.00083,66347.0,66346.0,2.35036018]
[1722353656101,0.0085,66353.0,66352.0,1.536699]
[1722353656245,0.0085,66353.0,66352.0,2.20639018]
[1722353656419,0.0085,66353.0,66352.0,2.09620197]
[1722353656622,0.0085,66353.0,66352.0,2.22144709]
[1722353656835,0.0023,66370.0,66369.0,1.054707]
[1722353657103,0.0023,66370.0,66369.0,1.33450997]
[1722353657261,0.0023,66370.0,66369.0,1.63664109]
[1722353657659,0.0023,66370.0,66369.0,1.60664109]
[1722353658013,0.0023,66370.0,66369.0,1.18006497]
[1722353658209,0.0023,66370.0,66369.0,1.48140997]
[1722353658452,0.0023,66370.0,66369.0,1.49140997]
[1722353658699,0.0023,66370.0,66369.0,1.61663856]
[1722353658902,0.0023,66370.0,66369.0,1.60663856]
[1722353659134,0.0023,66370.0,66369.0,1.62063856]
[1722353659354,0.0023,66370.0,66369.0,1.60663856]
[1722353659562,0.0023,66370.0,66369.0,1.61706241]
[1722353659787,0.0023,66370.0,66369.0,1.32971741]
[1722353660006,0.0023,66370.0,66369.0,1.20448882]
[1722353660207,0.0023,66370.0,66369.0,1.63106795]
[1722353660593,0.0023,66370.0,66369.0,1.64106795]
[1722353660918,0.0023,66370.0,66369.0,1.64706795]
[1722353661324,0.0023,66370.0,66369.0,1.96241295]
[1722353661921,0.0023,66370.0,66369.0,1.97641295]
[1722353662145,0.44444115,66390.0,66373.0,1.550871]
[1722353662328,0.44444115,66390.0,66373.0,1.9648081]
[1722353662863,0.44444115,66390.0,66373.0,1.94478127]
[1722353663268,0.44444115,66390.0,66373.0,2.16088127]
[1722353663627,0.44444115,66390.0,66373.0,2.18088127]
[1722353664114,0.44444115,66390.0,66373.0,2.16088127]
[1722353664319,0.44444115,66390.0,66373.0,2.18288127]
[1722353664531,0.07534716,66388.0,66373.0,2.16088127]
[1722353664735,0.07534716,66381.0,66373.0,1.84955427]
[1722353664946,0.07534716,66381.0,66373.0,1.16722727]
[1722353665078,0.0779,66378.0,66373.0,1.16722727]
[1722353665280,0.13564716,66381.0,66373.0,0.41636597]
[1722353665281,0.07534716,66381.0,66373.0,0.41636597]
[1722353665521,0.07534716,66381.0,66373.0,1.32034697]
[1722353665835,0.07534716,66381.0,66373.0,1.03301997]
[1722353666065,0.07534716,66381.0,66373.0,1.01901997]
[1722353666386,0.07534716,66381.0,66373.0,1.1442498]
[1722353666563,0.07534716,66381.0,66373.0,1.1672498]
[1722353666772,0.07534716,66381.0,66373.0,1.04201997]
[1722353667211,0.07534716,66381.0,66373.0,1.16725028]
[1722353667415,0.07534716,66381.0,66373.0,0.85085335]
[1722353667622,0.07534716,66381.0,66373.0,0.73962304]
[1722353667821,0.07534716,66381.0,66373.0,1.04095004]
[1722353667973,0.07534716,66381.0,66373.0,1.02695004]
[1722353668184,0.07534716,66381.0,66373.0,1.15218263]
[1722353668380,0.07534716,66381.0,66373.0,1.16618263]
[1722353668579,0.07534716,66381.0,66373.0,1.46750963]
[1722353668984,0.0779,66385.0,66373.0,1.46750963]
[1722353669744,0.07534716,66381.0,66373.0,1.16618263]
[1722353670124,0.15399,66374.0,66373.0,0.23923259]
[1722353670372,0.15399,66374.0,66373.0,0.014]
[1722353670947,0.00849,66374.0,66373.0,0.61662304]
[1722353671144,0.00849,66374.0,66373.0,0.60262304]
[1722353671349,0.00849,66374.0,66373.0,0.72786307]
[1722353671545,0.00849,66374.0,66373.0,1.10639007]
[1722353671883,0.00849,66374.0,66373.0,1.60981707]
[1722353672206,0.00849,66374.0,66373.0,1.63281707]
[1722353672413,0.00849,66374.0,66373.0,1.67680244]
[1722353672533,0.00849,66374.0,66373.0,1.75680244]
[1722353672734,0.00849,66374.0,66373.0,1.74680244]
[1722353674041,0.00849,66374.0,66373.0,1.73280244]
[1722353674241,0.00849,66374.0,66373.0,1.74680244]
[1722353674586,0.00849,66374.0,66373.0,2.05812944]
[1722353675620,0.00849,66374.0,66373.0,2.05812153]
[1722353676193,0.00849,66374.0,66373.0,2.2983343]
[1722353677527,0.00849,66374.0,66373.0,2.05812153]
[1722353677688,0.00849,66374.0,66373.0,1.99699248]
[1722353678456,0.00849,66374.0,66373.0,1.94461961]
[1722353679034,0.00849,66374.0,66373.0,1.94462075]
[1722353680434,0.00849,66374.0,66373.0,1.96462075]
[1722353680787,0.00849,66374.0,66373.0,1.94462075]
[1722353680987,0.00849,66374.0,66373.0,1.94461972]
[1722353681442,0.00849,66374.0,66373.0,1.57009272]
[1722353681914,0.00849,66374.0,66373.0,1.87141972]
[1722353682499,0.00849,66374.0,66373.0,1.87142505]
[1722353683040,0.00849,66374.0,66373.0,1.88142505]
[1722353684075,0.00849,66374.0,66373.0,1.89752505]
[1722353684279,0.00849,66374.0,66373.0,1.88752505]
[1722353684509,0.00849,66374.0,66373.0,1.89752505]
[1722353685284,0.00849,66374.0,66373.0,1.88752505]
[1722353685493,0.00849,66374.0,66373.0,1.88752977]
[1722353686104,0.00849,66374.0,66373.0,1.28487577]
[1722353686321,0.00849,66374.0,66373.0,0.15532109]
[1722353687358,0.159151,66374.0,66373.0,0.15532109]
[1722353687717,0.00849,66374.0,66373.0,0.15532109]
[1722353688059,0.00849,66374.0,66373.0,0.14132109]
[1722353688471,0.00849,66374.0,66373.0,0.15532109]
[1722353688726,0.00849,66374.0,66373.0,0.15534935]
[1722353689913,0.460473,66374.0,66373.0,0.0301]
[1722353690112,0.159151,66374.0,66373.0,0.0301]
[1722353690313,0.48406902,66374.0,66373.0,0.0301]
[1722353690513,0.56396902,66374.0,66373.0,0.0301]
[1722353690715,0.92849102,66374.0,66373.0,0.0301]
[1722353691190,0.62716902,66374.0,66373.0,0.0301]
[1722353691395,0.32584702,66374.0,66373.0,0.0301]
[1722353691622,0.302251,66374.0,66373.0,0.0301]
[1722353691954,0.603573,66374.0,66373.0,0.0161]
[1722353692133,0.603573,66374.0,66373.0,0.0301]
[1722353692335,0.302251,66374.0,66373.0,0.0301]
[1722353692538,0.32584713,66374.0,66373.0,0.0301]
[1722353692999,0.17518613,66374.0,66373.0,0.0301]
[1722353693232,0.15159,66374.0,66373.0,0.0301]
[1722353695834,0.302251,66374.0,66373.0,0.0301]
[1722353696650,0.603573,66374.0,66373.0,0.0301]
[1722353696852,0.904895,66374.0,66373.0,0.0301]
[1722353697045,0.928492,66374.0,66373.0,0.0301]
[1722353697485,0.92485343,66374.0,66373.0,0.0301]
[1722353697837,0.62353143,66374.0,66373.0,0.0301]
[1722353698047,0.92485343,66374.0,66373.0,0.0301]
[1722353698809,1.22617543,66374.0,66373.0,0.0301]
[1722353699032,0.92485343,66374.0,66373.0,0.0301]
[1722353701320,1.63444738,66374.0,66373.0,0.0301]
[1722353701523,1.53161775,66374.0,66373.0,0.0301]
[1722353701735,1.38620448,66374.0,66373.0,0.0301]
[1722353701961,1.37680847,66374.0,66373.0,0.0301]
[1722353702158,1.48964367,66374.0,66373.0,0.0301]
[1722353702324,1.37680847,66374.0,66373.0,0.0301]
[1722353703912,1.67813047,66374.0,66373.0,0.0301]
[1722353704118,1.83882479,66374.0,66373.0,0.0161]
[1722353704336,1.82882479,66374.0,66373.0,0.0161]
[1722353704500,1.83882479,66374.0,66373.0,0.0201]
[1722353704714,1.83882479,66374.0,66370.0,0.000913]
[1722353704715,1.386012,66371.0,66370.0,0.000913]
[1722353705041,1.386012,66371.0,66368.0,0.00018137]
[1722353705042,0.783362,66369.0,66368.0,0.00018137]
[1722353705247,2.01562361,66369.0,66368.0,0.00018137]
[1722353705457,2.01562361,66369.0,66338.0,0.0015542]
[1722353705458,0.01,66363.0,66338.0,0.0015542]
[1722353705606,2.09395161,66369.0,66338.0,0.0015542]
[1722353705607,0.97355916,66347.0,66338.0,0.0015542]
[1722353705766,0.97355916,66347.0,66332.0,0.006041]
[1722353705767,0.596767,66347.0,66332.0,0.006041]
[1722353706171,0.596767,66347.0,66335.0,0.301498]
[1722353706172,0.1446,66347.0,66335.0,0.301498]
[1722353706477,0.1446,66347.0,66333.0,0.301505]
[1722353706478,0.596767,66347.0,66333.0,0.301505]
[1722353706681,0.898212,66347.0,66333.0,0.150754]
[1722353706879,0.596767,66347.0,66334.0,0.10301466]
[1722353707152,0.446045,66347.0,66334.0,0.10301466]
[1722353707337,0.596767,66347.0,66334.0,0.250751]
[1722353707511,0.1446,66347.0,66335.0,0.30451267]
[1722353707862,0.07534716,66361.0,66344.0,0.0646]
[1722353707863,0.0764,66353.0,66344.0,0.0646]
[1722353708081,0.0764,66357.0,66345.0,0.00301422]
[1722353708284,0.001,66347.0,66346.0,0.014913]
[1722353708488,0.001,66347.0,66346.0,0.165637]
[1722353708642,0.001,66347.0,66346.0,0.467086]
[1722353708984,0.001,66347.0,66346.0,0.165637]
[1722353709410,0.001,66347.0,66346.0,0.467086]
[1722353709573,0.001,66347.0,66346.0,0.91916804]
[1722353709788,0.001,66347.0,66346.0,1.48691704]
[1722353710004,0.001,66347.0,66346.0,1.49691704]
[1722353710195,0.001,66347.0,66346.0,1.62219041]
[1722353710494,0.001,66347.0,66346.0,1.95386941]
[1722353710657,0.0816,66369.0,66346.0,1.95386941]
[1722353710658,0.0816,66369.0,66361.0,0.066]
[1722353710863,0.44444115,66362.0,66361.0,0.23175993]
[1722353711089,0.0816,66369.0,66361.0,0.08106993]
[1722353711441,0.0816,66369.0,66363.0,0.150685]
[1722353711602,0.07534716,66365.0,66361.0,0.01506993]
[1722353711802,0.07534716,66365.0,66362.0,0.0015542]
[1722353712007,0.07534716,66365.0,66361.0,0.16575993]
[1722353712666,0.07534716,66365.0,66361.0,0.01506993]
[1722353712865,0.07534716,66365.0,66361.0,0.16575893]
[1722353713071,0.0645,66364.0,66361.0,0.01506993]
[1722353713211,0.0645,66364.0,66354.0,0.02567781]
[1722353713408,0.07534716,66358.0,66354.0,0.01506993]
[1722353713616,0.215184,66364.0,66355.0,0.150703]
[1722353713617,0.0645,66364.0,66355.0,0.150703]
[1722353713817,0.0645,66364.0,66361.0,0.014]
[1722353714061,0.531965,66362.0,66361.0,0.014]
[1722353714345,0.150691,66361.0,66354.0,0.01506993]
[1722353714548,0.150691,66361.0,66354.0,0.02906993]
[1722353714773,0.230589,66362.0,66354.0,0.01506993]
[1722353714945,0.230588,66362.0,66354.0,0.01506993]
[1722353715179,0.07534716,66358.0,66355.0,0.0015542]
[1722353715349,0.150702,66356.0,66355.0,0.0015542]
[1722353715562,0.150702,66356.0,66347.0,0.15063304]
[1722353715563,0.301403,66357.0,66348.0,0.0015542]
[1722353715802,0.07534716,66358.0,66348.0,0.0015542]